bitfinex-derivatives/quotes_ETHF0:USTF0_20251006
["timestamp","ask_amount","ask_price","bid_price","bid_amount"]
[1759745680894,38.2490561,4566.0,4565.9,0.4487]
[1759745681998,3.8630561,4566.0,4565.9,0.4487]
[1759745682199,4.0820561,4566.0,4565.9,0.4487]
[1759745682796,4.0820561,4566.0,4565.9,0.7362]
[1759745683103,3.6438561,4566.0,4565.9,1.0211]
[1759745683294,4.0820561,4566.0,4565.9,1.0211]
[1759745683490,3.8630561,4566.0,4565.9,1.0211]
[1759745683802,4.0820561,4566.0,4565.9,1.0211]
[1759745684605,0.2798,4566.0,4565.9,1.0211]
[1759745684804,0.219,4566.0,4565.9,1.0211]
[1759745685102,3.2078,4566.2,4566.0,0.39405]
[1759745685303,3.4876,4566.2,4566.1,1.0211]
[1759745685495,3.7066,4566.2,4566.1,1.0211]
[1759745686392,3.4268,4566.2,4566.1,1.0211]
[1759745686600,3.49044397,4566.7,4566.6,1.4151]
[1759745686801,4.00654397,4566.7,4566.6,1.4151]
[1759745687107,4.44474397,4566.7,4566.6,1.4151]
[1759745687406,3.21064397,4566.7,4566.6,1.4151]
[1759745687600,3.42964397,4566.7,4566.6,1.4151]
[1759745687798,3.21064397,4566.7,4566.6,1.4151]
[1759745688007,3.42964397,4566.7,4566.6,1.4151]
[1759745688614,3.21064397,4566.7,4566.6,1.4151]
[1759745688903,0.00284397,4566.7,4566.6,1.4151]
[1759745689807,0.22184397,4566.7,4566.6,1.4151]
[1759745690198,0.00284397,4566.7,4566.6,1.4151]
[1759745690399,0.22184397,4566.7,4566.6,1.4151]
[1759745690605,0.00284397,4566.7,4566.6,1.4151]
[1759745690802,0.22184397,4566.7,4566.6,1.4151]
[1759745691806,0.00284397,4566.7,4566.6,1.4151]
[1759745692004,0.22184397,4566.7,4566.6,6.4151]
[1759745692510,3.6195,4567.8,4567.7,0.3939]
[1759745692703,4.88668191,4567.8,4567.7,1.1427]
[1759745692903,7.50900487,4567.8,4567.7,1.1427]
[1759745693102,7.72800487,4567.8,4567.7,1.1427]
[1759745693312,7.72800487,4567.8,4567.7,1.4352]
[1759745693613,7.72973505,4567.8,4567.7,1.4352]
[1759745694909,7.31803505,4567.8,4567.7,1.4352]
[1759745695303,7.09903505,4567.8,4567.7,1.4352]
[1759745695509,4.47671209,4567.8,4567.7,1.4352]
[1759745696209,4.88841209,4567.8,4567.7,1.4352]
[1759745699411,1.68061209,4567.8,4567.7,1.4352]
[1759745700814,1.68061209,4567.8,4567.7,1.1427]
[1759745701116,1.04991209,4567.8,4567.7,1.4352]
[1759745701417,1.26891209,4567.8,4567.7,1.4352]
[1759745702320,1.04991209,4567.8,4567.7,1.4352]
[1759745702515,0.49041209,4567.8,4567.7,1.4352]
[1759745702817,0.70941209,4567.8,4567.7,1.4352]
[1759745703015,0.49041209,4567.8,4567.7,1.4352]
[1759745703216,0.70941209,4567.8,4567.7,1.4352]
[1759745703810,0.49041209,4567.8,4567.7,1.4352]
[1759745704319,0.70941209,4567.8,4567.7,1.4352]
[1759745704518,0.49041209,4567.8,4567.7,1.4352]
[1759745704833,0.70941209,4567.8,4567.7,1.4352]
[1759745705121,0.22073018,4567.8,4567.7,1.4352]
[1759745705318,0.00173018,4567.8,4567.7,1.4352]
[1759745705623,0.22073018,4567.8,4567.7,1.4352]
[1759745706120,0.00173018,4567.8,4567.7,1.4352]
[1759745706320,0.22073018,4567.8,4567.7,1.4352]
[1759745709018,0.00173018,4567.8,4567.7,1.4352]
[1759745709219,0.22073018,4567.8,4567.7,1.4352]
[1759745709722,1.19193018,4567.8,4567.7,1.4352]
[1759745709919,1.19193018,4567.8,4567.7,0.3939]
[1759745710231,0.9712,4567.4,4567.3,0.39393]
[1759745710423,1.46036527,4567.4,4567.3,0.39393]
[1759745711117,1.67936527,4567.4,4567.3,0.39393]
[1759745711424,1.67936527,4567.4,4567.3,0.39394]
[1759745712326,1.67936527,4567.4,4567.3,0.84854]
[1759745712528,1.04866527,4567.4,4567.3,1.43524]
[1759745712826,1.26766527,4567.4,4567.3,1.43524]
[1759745713215,0.56432527,4567.4,4567.3,1.43524]
[1759745713428,0.70816527,4567.4,4567.3,4.64304]
[1759745714024,0.48916527,4567.4,4567.3,4.64304]
[1759745714523,0.219,4567.4,4567.3,4.64304]
[1759745716519,0.00173018,4567.8,4567.7,1.4352]
[1759745716724,0.00173018,4567.8,4567.7,0.7488]
[1759745716725,0.89374356,4567.8,4567.7,0.7488]
[1759745717428,0.89294356,4567.8,4567.7,0.7488]
[1759745717725,1.0023,4567.1,4567.0,0.57586]
[1759745717931,1.71191338,4567.1,4567.0,0.84806]
[1759745718526,1.71191338,4567.1,4567.0,1.13506]
[1759745719932,1.71191338,4567.1,4567.0,1.56986]
[1759745721733,1.26911338,4567.1,4567.0,1.56986]
[1759745721929,1.71191338,4567.1,4567.0,1.56986]
[1759745722430,1.71191338,4567.1,4567.0,0.707]
[1759745722627,1.0261,4566.6,4566.5,0.83791]
[1759745722830,1.73571338,4566.6,4566.5,0.83791]
[1759745723032,1.73571338,4566.6,4566.5,1.12491]
[1759745723229,1.73571338,4566.6,4566.5,1.55971]
[1759745723631,1.73571338,4566.6,4566.5,1.10101]
[1759745725230,1.73571338,4566.6,4566.5,1.26961]
[1759745728936,1.73571338,4566.6,4566.5,1.55661]
[1759745731444,0.70961338,4566.6,4566.5,1.55661]
[1759745732845,1.00131338,4566.6,4566.5,1.55661]
[1759745733041,0.70961338,4566.6,4566.5,1.55661]
[1759745733246,1.00131338,4566.6,4566.5,1.55661]
[1759745734447,1.69771338,4566.6,4566.5,1.55661]
[1759745734744,1.29291338,4566.6,4566.5,1.55661]
[1759745735243,0.8023,4566.6,4566.5,1.55661]
[1759745736047,0.219,4566.6,4566.5,1.55661]
[1759745736639,0.5,4566.6,4566.5,1.55661]
[1759745738339,0.9905075,4566.6,4566.5,1.55661]
[1759745738534,1.2671075,4566.6,4566.5,1.55661]
[1759745739334,1.6719075,4566.6,4566.5,1.55661]
[1759745740245,1.2671075,4566.6,4566.5,1.55661]
[1759745742344,0.7095075,4566.6,4566.5,1.55661]
[1759745743046,0.9905075,4566.6,4566.5,1.55661]
[1759745743546,1.2671075,4566.6,4566.5,1.55661]
[1759745745543,0.5576,4566.2,4566.1,0.7194]
[1759745745738,0.2766,4565.7,4565.6,0.4316]
[1759745745945,1.1814,4565.7,4565.6,0.7194]
[1759745746139,1.6719075,4565.7,4565.6,0.7194]
[1759745747544,0.9905075,4565.7,4565.6,1.0091]
[1759745747851,0.7095075,4565.7,4565.6,1.0091]
[1759745748244,0.9855075,4565.7,4565.6,1.0091]
[1759745751052,0.7665075,4565.7,4565.6,1.0091]
[1759745751252,0.9855075,4565.7,4565.6,1.0091]
[1759745753655,0.9855075,4565.7,4565.6,1.0083]
[1759745753956,1.6626075,4565.7,4565.6,0.7186]
[1759745754155,0.9531,4565.5,4565.4,0.3941]
[1759745754355,1.4436075,4565.5,4565.4,0.6771]
[1759745754554,1.4436075,4565.5,4565.4,0.3941]
[1759745754753,0.5481,4565.3,4565.2,0.67964503]
[1759745754959,1.4436075,4565.3,4565.2,0.28553503]
[1759745755164,0.9531,4565.3,4565.2,0.67965503]
[1759745755752,0.9531,4565.3,4565.2,1.11805503]
[1759745756147,0.9531,4565.3,4565.2,0.39665503]
[1759745756359,0.9531,4565.3,4565.2,0.83505503]
[1759745756654,0.5481,4565.3,4565.2,1.41365503]
[1759745756860,0.276,4565.3,4565.2,1.41365503]
[1759745757060,0.495,4565.3,4565.2,1.41365503]
[1759745757560,0.276,4565.3,4565.2,1.41365503]
[1759745757853,0.276,4565.6,4565.5,1.29209]
[1759745758058,0.219,4565.6,4565.5,1.58769]
[1759745758255,0.70906334,4565.6,4565.5,1.58769]
[1759745758456,0.405,4566.2,4566.1,0.39404]
[1759745758663,0.405,4566.2,4566.1,0.7214]
[1759745758664,1.66214817,4566.2,4566.1,0.7214]
[1759745758867,0.9531,4565.7,4565.6,0.283]
[1759745759164,1.66214817,4565.7,4565.6,0.283]
[1759745759364,1.66214817,4565.7,4565.6,0.7214]
[1759745761265,1.66214817,4565.7,4565.6,0.4384]
[1759745762066,1.66214817,4565.7,4565.6,0.7214]
[1759745762760,1.66214817,4565.7,4565.6,1.017]
[1759745763169,0.49004817,4565.7,4565.6,1.017]
[1759745763370,0.70904817,4565.7,4565.6,1.017]
[1759745764069,0.49004817,4565.7,4565.6,1.017]
[1759745764265,3.2078,4565.8,4565.7,1.41108]
[1759745764470,3.4268,4565.8,4565.7,1.41108]
[1759745765469,3.2078,4565.8,4565.7,1.41108]
[1759745765670,3.4268,4565.8,4565.7,1.41108]
[1759745765971,3.2078,4565.8,4565.7,1.41108]
[1759745766168,3.4268,4565.8,4565.7,1.41108]
[1759745767068,0.276,4566.2,4566.1,0.97264]
[1759745767267,0.98528545,4566.2,4566.1,1.41104]
[1759745767569,0.276,4566.2,4566.1,1.41104]
[1759745767765,3.4838,4566.4,4566.3,1.41102]
[1759745767967,4.1930582,4566.4,4566.3,1.41102]
[1759745768163,4.4651582,4566.4,4566.3,1.41102]
[1759745768358,4.8701582,4566.4,4566.3,1.11542]
[1759745769461,7.30028997,4566.4,4566.0,0.1766]
[1759745769668,1.4433582,4566.3,4566.2,1.11543]
[1759745771272,1.4433582,4566.3,4566.2,0.83243]
[1759745771469,1.4433582,4566.3,4566.2,1.11543]
[1759745771667,0.405,4566.2,4566.1,0.39404]
[1759745771866,1.6623582,4566.2,4566.1,0.39404]
[1759745772071,4.54893946,4566.2,4566.1,0.39404]
[1759745772668,4.54893946,4566.2,4566.1,0.83244]
[1759745772866,4.54893946,4566.2,4566.1,1.11544]
[1759745773670,4.54893946,4566.2,4566.1,0.83244]
[1759745774071,4.54893946,4566.2,4566.1,1.11544]
[1759745774670,0.9531,4565.9,4565.8,0.39406]
[1759745774876,0.5481,4565.7,4565.6,0.4384]
[1759745775066,1.6623582,4565.7,4565.3,0.4384]
[1759745775269,1.6623582,4565.7,4565.2,0.72393503]
[1759745775270,0.9531,4565.3,4565.2,0.72393503]
[1759745775465,1.1721,4565.3,4565.2,1.01953503]
[1759745775971,1.66306387,4565.3,4565.2,0.00253503]
[1759745776173,4.45421367,4565.3,4565.2,0.00253503]
[1759745779075,0.9955,4564.5,4564.4,0.4348]
[1759745779378,1.70546387,4564.5,4564.4,0.4348]
[1759745779979,1.70546387,4564.5,4564.4,0.6988]
[1759745780171,1.70772352,4564.5,4564.4,0.43762131]
[1759745782283,1.70772352,4564.5,4564.4,0.00282131]
[1759745782284,7.82073241,4564.5,4564.4,0.00282131]
[1759745783579,0.7152,4564.2,4564.1,0.9668]
[1759745783780,1.70546387,4564.2,4564.1,0.9668]
[1759745783976,4.52848898,4564.2,4564.1,0.9668]
[1759745784376,4.52848898,4564.2,4564.1,0.70158608]
[1759745787481,4.03752511,4564.2,4564.1,0.70158608]
[1759745788682,4.03752511,4564.2,4564.1,0.43758608]
[1759745789787,4.03752511,4564.2,4564.1,0.00278608]
[1759745790185,4.03672511,4564.2,4564.1,0.00278608]
[1759745790489,4.52536652,4564.2,4564.1,0.00278608]
[1759745790888,0.5571,4563.4,4563.3,1.36108]
[1759745791082,0.7761,4563.4,4563.3,1.36108]
[1759745791991,0.7761,4563.4,4563.3,1.36296921]
[1759745792187,0.7761,4563.4,4563.3,0.96868921]
[1759745792391,1.2145,4563.4,4563.3,0.96868921]
[1759745792787,2.84935239,4563.4,4563.3,1.36296921]
[1759745792980,3.2078,4563.9,4563.8,0.39424]
[1759745793187,0.67102,4564.1,4564.0,1.1364]
[1759745793492,0.00225965,4564.5,4564.1,0.39421]
[1759745793686,0.00225965,4564.5,4564.4,0.9668]
[1759745793687,0.95353965,4564.5,4564.4,0.9668]
[1759745793991,4.41137936,4564.5,4564.4,0.9668]
[1759745794193,1.31711,4564.1,4564.0,0.8332]
[1759745794385,1.53611,4564.1,4564.0,0.8332]
[1759745795288,0.39421,4564.1,4564.0,1.1016]
[1759745795493,0.219,4564.1,4564.0,1.10052]
[1759745795890,0.4808,4564.1,4564.0,0.7063]
[1759745796189,0.4808,4564.1,4564.0,1.1016]
[1759745799092,0.7498,4564.1,4564.0,1.1016]
[1759745799799,1.1419,4564.1,4564.0,1.1016]
[1759745799998,0.5308,4563.7,4563.6,0.932]
[1759745800197,0.7498,4563.7,4563.6,0.932]
[1759745804002,0.4808,4563.7,4563.6,0.932]
[1759745804404,0.2618,4563.7,4563.6,0.932]
[1759745804606,0.4808,4563.7,4563.6,0.932]
[1759745807806,1.24049512,4563.7,4563.6,0.932]
[1759745808108,1.66446647,4563.7,4563.6,0.932]
[1759745809708,0.70966647,4563.7,4563.6,0.932]
[1759745810198,0.49066647,4563.7,4563.6,0.932]
[1759745810506,0.70966647,4563.7,4563.6,0.932]
[1759745811006,0.99016647,4563.7,4563.6,0.932]
[1759745812909,1.68806647,4563.7,4563.6,0.932]
[1759745813105,1.26406647,4563.7,4563.6,0.932]
[1759745814011,0.99016647,4563.7,4563.6,0.932]
[1759745814724,0.70966647,4563.7,4563.6,0.932]
[1759745815410,0.99016647,4563.7,4563.6,0.932]
[1759745819612,0.99016647,4563.7,4563.3,0.97588921]
[1759745819613,0.9784,4563.4,4563.3,0.97588921]
[1759745819813,1.26406647,4563.4,4563.3,0.97588921]
[1759745821513,1.68806647,4563.4,4563.3,0.97588921]
[1759745821718,1.68806647,4563.4,4563.3,0.70528921]
[1759745822517,1.68806647,4563.4,4563.3,0.43228921]
[1759745823219,1.68806647,4563.4,4563.3,0.70528921]
[1759745824708,4.55279067,4563.4,4563.3,0.43228921]
[1759745825317,4.55279067,4563.4,4563.3,0.00188921]
[1759745825519,0.705,4563.0,4562.9,0.02191613]
[1759745825716,0.9784,4562.0,4561.9,3.9112]
[1759745825917,1.1974,4562.0,4561.9,3.9112]
[1759745826317,1.1974,4562.0,4561.9,3.6382]
[1759745826518,1.1974,4562.0,4561.9,3.6392428]
[1759745826722,1.1974,4562.0,4561.9,3.9122428]
[1759745827215,0.9784,4561.2,4561.1,0.7034]
[1759745827420,1.1974,4561.2,4561.1,0.7034]
[1759745827818,1.1974,4561.2,4561.1,0.974]
[1759745828216,1.1974,4561.2,4561.1,0.00174889]
[1759745828217,1.59418943,4561.2,4561.1,0.00174889]
[1759745828423,0.77572943,4561.2,4561.1,0.97574889]
[1759745828614,0.00232943,4561.2,4561.1,4.18354889]
[1759745828822,0.22132943,4561.2,4561.1,4.18354889]
[1759745829226,0.22132943,4561.2,4561.1,0.97574889]
[1759745829613,0.50182943,4561.2,4561.1,0.97574889]
[1759745830321,0.77572943,4561.2,4561.1,0.97574889]
[1759745830626,0.22132943,4561.2,4561.1,4.18354889]
[1759745830825,0.00232943,4561.2,4561.1,4.18354889]
[1759745831026,0.22132943,4561.2,4561.1,4.18354889]
[1759745831226,0.22132943,4561.2,4561.1,0.97574889]
[1759745831424,0.50182943,4561.2,4561.1,0.97574889]
[1759745832419,1.19972943,4561.2,4561.1,0.00174889]
[1759745832624,1.19972943,4561.2,4561.1,0.43214889]
[1759745832827,1.19972943,4561.2,4561.1,0.70514889]
[1759745833621,1.19972943,4561.2,4561.1,0.00174889]
[1759745833828,1.19972943,4561.2,4561.1,0.43214889]
[1759745834630,1.19972943,4561.2,4561.1,0.70514889]
[1759745837428,4.09665601,4561.2,4561.1,0.43214889]
[1759745838921,3.45365601,4561.2,4561.1,0.99054889]
[1759745839123,0.22132943,4561.2,4561.1,4.19834889]
[1759745839523,0.00232943,4561.2,4561.1,4.19834889]
[1759745839733,1.97152,4563.2,4562.2,0.9554]
[1759745839734,3.2078,4562.3,4562.2,0.9554]
[1759745839930,3.7087,4562.3,4562.2,0.9554]
[1759745840724,3.42941444,4562.3,4562.2,0.9554]
[1759745840929,3.21041444,4562.3,4562.2,0.9554]
[1759745841528,3.42941444,4562.3,4562.2,0.9554]
[1759745841737,3.21041444,4562.3,4562.2,0.9554]
[1759745841934,3.42941444,4562.3,4562.2,0.9554]
[1759745842436,0.22161444,4562.3,4562.2,0.9554]
[1759745843237,0.2819,4563.2,4563.1,0.9554]
[1759745843433,0.5009,4563.2,4563.1,0.9554]
[1759745843633,3.39237309,4563.2,4563.1,0.9554]
[1759745844129,3.39410501,4563.2,4563.1,0.9554]
[1759745844333,1.18012192,4563.2,4563.1,0.9554]
[1759745844942,1.57062192,4563.2,4563.1,0.9554]
[1759745845432,1.18012192,4563.2,4563.1,0.9554]
[1759745846235,1.57062192,4563.2,4563.1,0.9554]
[1759745846438,0.95943,4562.9,4562.8,0.568]
[1759745846636,0.7841,4562.9,4562.8,0.9554]
[1759745846836,0.5009,4562.9,4562.8,0.9554]
[1759745847044,0.219,4562.9,4562.8,0.9554]
[1759745847337,0.28363192,4563.2,4563.1,1.3497]
[1759745847540,0.50263192,4563.2,4563.1,0.9554]
[1759745847934,0.78583192,4563.2,4563.1,0.9554]
[1759745848934,1.17633192,4563.2,4563.1,0.9554]
[1759745850238,0.00173192,4563.2,4563.1,0.9554]
[1759745850439,0.22073192,4563.2,4563.1,0.9554]
[1759745852231,0.00173192,4563.2,4563.1,5.9554]
[1759745852543,0.22073192,4563.2,4563.1,5.9554]
[1759745853042,0.22073192,4563.2,4563.1,46.7554]
[1759745854042,0.9556,4564.2,4564.1,1.06421]
[1759745854245,1.66329754,4564.2,4564.1,0.67]
[1759745854542,4.54811894,4564.2,4564.1,0.67]
[1759745855038,4.54987186,4564.2,4564.1,0.67]
[1759745856945,4.15937186,4564.2,4564.1,0.9438]
[1759745857142,0.49045046,4564.2,4564.1,0.9438]
[1759745857345,0.22075292,4564.2,4564.1,0.9438]
[1759745858245,0.49385292,4564.2,4564.1,0.9438]
[1759745858641,1.18425292,4564.2,4564.1,0.9438]
[1759745858840,0.63775292,4564.2,4563.8,0.39424]
[1759745859041,0.2731,4563.6,4563.5,0.1554]
[1759745859243,0.9635,4563.0,4562.9,0.39432]
[1759745859441,0.2731,4562.6,4562.5,1.07905]
[1759745859640,0.2731,4562.6,4562.5,1.102]
[1759745859641,0.4921,4562.6,4562.5,1.102]
[1759745862249,0.219,4562.6,4562.5,1.102]
[1759745862941,0.4921,4562.6,4562.5,1.102]
[1759745863641,0.4913,4562.6,4562.5,1.102]
[1759745864845,0.219,4562.6,4562.5,1.102]
[1759745865347,3.7543,4563.3,4563.2,0.9466]
[1759745865545,4.46205184,4563.3,4563.2,0.9466]
[1759745866042,3.96965184,4563.3,4563.2,0.9466]
[1759745866252,3.4268,4563.3,4563.2,0.9466]
[1759745866450,4.3903,4563.3,4563.2,0.6728]
[1759745868150,4.88000918,4563.3,4563.2,0.9466]
[1759745868345,4.46300918,4563.3,4563.2,0.9466]
[1759745868845,3.69750918,4563.3,4563.2,0.9466]
[1759745869053,3.91650918,4563.3,4563.2,0.9466]
[1759745869249,3.2078,4563.3,4563.2,0.9466]
[1759745869450,3.4268,4563.3,4563.2,0.9466]
[1759745869852,3.2078,4563.3,4563.2,0.9466]
[1759745870241,3.4601,4563.9,4563.8,0.2689]
[1759745870446,4.16934593,4563.9,4563.8,0.9267]
[1759745870645,4.16934593,4563.9,4563.8,1.32094]
[1759745870850,0.49024593,4563.9,4563.8,1.32094]
[1759745871355,0.00175292,4564.2,4564.1,1.32091]
[1759745871549,0.22075292,4564.2,4564.1,1.32091]
[1759745872045,0.4920595,4564.2,4564.1,1.32091]
[1759745872247,0.22075292,4564.2,4564.1,1.32091]
[1759745873744,1.15535292,4564.2,4564.1,0.9267]
[1759745873943,1.15535292,4564.2,4563.7,3.2078]
[1759745873944,0.2523,4563.8,4563.7,0.39425]
[1759745874144,0.7516,4563.8,4563.7,1.32095]
[1759745876058,0.4713,4563.8,4563.7,1.32095]
[1759745881855,0.219,4563.8,4563.7,1.32095]
[1759745885263,0.00175292,4564.2,4564.0,1.47962]
[1759745885570,0.70898168,4564.1,4564.0,1.47962]
[1759745886067,0.48998168,4564.1,4564.0,1.47962]
[1759745886268,1.24158168,4564.1,4564.0,1.47962]
[1759745886771,1.64358168,4564.1,4564.0,1.47962]
[1759745889171,1.24158168,4564.1,4564.0,1.47962]
[1759745891576,0.48998168,4564.1,4564.0,1.47962]
[1759745891882,0.48998168,4564.1,4564.0,6.47962]
[1759745892172,0.00175292,4564.2,4564.1,0.9267]
[1759745892372,0.49201559,4564.2,4564.1,4.1345]
[1759745892678,0.49201559,4564.2,4564.1,44.9345]
[1759745892977,0.00175292,4564.2,4564.1,44.9345]
[1759745893165,0.49214553,4564.2,4564.1,49.9345]
[1759745893366,0.00175292,4564.2,4564.1,49.9345]
[1759745893771,0.00175292,4564.2,4564.1,44.9345]
[1759745893967,0.00175292,4564.2,4564.1,45.32871]
[1759745894167,1.11316855,4564.2,4564.1,41.7267]
[1759745894478,1.64576855,4564.2,4564.1,0.9267]
[1759745895067,1.24376855,4564.2,4564.1,4.1345]
[1759745895471,0.49216855,4564.2,4564.1,4.1345]
[1759745895667,0.71116855,4564.2,4564.1,4.1345]
[1759745896871,0.96346855,4564.2,4564.1,4.1345]
[1759745897073,0.49216855,4564.2,4564.1,4.1345]
[1759745897270,0.71116855,4564.2,4564.1,4.1345]
[1759745898670,0.49216855,4564.2,4564.1,4.1345]
[1759745898876,0.00175292,4564.2,4564.1,4.1345]
[1759745899673,0.00175292,4564.2,4564.1,44.9345]
[1759745900081,0.00175292,4564.2,4564.1,44.9337]
[1759745909293,0.37285292,4564.2,4564.1,44.9337]
[1759745909491,0.90995292,4564.2,4564.1,4.1337]
[1759745909690,0.53885292,4564.2,4564.1,4.1337]
[1759745910794,0.53885292,4564.2,4564.1,0.9259]
[1759745911095,1.02861427,4564.2,4564.1,0.9259]
[1759745912787,0.28033427,4564.2,4564.1,4.1337]
[1759745912986,0.2375,4564.8,4564.7,1.29386]
[1759745913189,0.4565,4564.8,4564.7,1.29386]
[1759745913784,0.4565,4564.8,4564.7,1.2957745]
[1759745913985,0.45893171,4564.8,4564.7,1.2957745]
[1759745916895,0.23993171,4564.8,4564.7,1.2957745]
[1759745917095,0.45893171,4564.8,4564.7,1.2957745]
[1759745917595,0.69123171,4564.8,4564.7,1.2957745]
[1759745917796,0.69123171,4564.8,4564.7,1.0213745]
[1759745920597,0.69123171,4564.8,4564.7,1.2915745]
[1759745921092,4.04423171,4564.8,4564.7,0.3749145]
[1759745924905,4.53351068,4564.8,4564.7,0.3749145]
[1759745929605,4.53351068,4564.8,4564.7,0.6287145]
[1759745929803,1.18051068,4564.8,4564.7,0.8864145]
[1759745931303,1.31941068,4564.8,4564.7,0.6287145]
[1759745931505,1.31941068,4564.8,4564.7,0.3749145]
[1759745933107,0.65681,4564.1,4564.0,0.2571]
[1759745933410,0.9015,4563.4,4563.3,0.2571]
[1759745933611,1.60977897,4563.4,4563.3,0.2571]
[1759745934206,1.60977897,4563.4,4563.3,0.25941826]
[1759745935112,1.60977897,4563.4,4563.3,0.65461826]
[1759745936214,1.60897897,4563.4,4563.3,0.65461826]
[1759745940617,1.23867897,4563.4,4563.3,0.91231826]
[1759745940816,0.219,4563.4,4563.3,0.65521826]
[1759745941114,0.219,4563.4,4563.3,1.30659826]
[1759745941511,0.2626,4563.9,4563.8,0.90904]
[1759745941820,0.96994661,4563.9,4563.8,0.91]
[1759745942021,1.60884661,4563.9,4563.8,0.91]
[1759745942221,1.38984661,4563.9,4563.8,0.6523]
[1759745942416,1.60884661,4563.9,4563.8,0.6523]
[1759745943218,1.38984661,4563.9,4563.8,0.91]
[1759745943418,1.60884661,4563.9,4563.8,0.91]
[1759745943720,1.23774661,4563.9,4563.8,0.91]
[1759745943925,1.60884661,4563.9,4563.8,0.91]
[1759745944223,1.38984661,4563.9,4563.8,0.91]
[1759745944420,1.23774661,4563.9,4563.8,0.91]
[1759745944615,1.01874661,4563.9,4563.8,0.91]
[1759745944815,1.23774661,4563.9,4563.8,0.91]
[1759745945218,1.01874661,4563.9,4563.8,0.91]
[1759745945418,1.23774661,4563.9,4563.8,0.91]
[1759745945620,1.01874661,4563.9,4563.8,0.91]
[1759745946030,0.75094661,4563.9,4563.8,0.91]
[1759745946217,4.19325,4564.6,4563.8,0.91]
[1759745946218,4.1093,4564.6,4564.5,0.2571]
[1759745946425,5.21091364,4564.6,4564.5,0.6523]
[1759745946724,1.29571,4564.1,4564.0,0.6617]
[1759745946921,2.00315364,4564.1,4564.0,0.6617]
[1759745947122,1.23784364,4564.1,4564.0,1.0569]
[1759745947518,1.23784364,4564.1,4564.0,41.8569]
[1759745947920,0.48844364,4564.1,4564.0,41.8569]
[1759745948129,3.60197,4564.6,4564.5,1.0569]
[1759745948426,4.35314772,4564.6,4564.5,1.0569]
[1759745948622,5.21104772,4564.6,4564.5,1.0569]
[1759745949328,5.21104772,4564.6,4564.5,0.91]
[1759745949524,5.21104772,4564.6,4564.5,0.6523]
[1759745952522,3.69637772,4564.6,4564.5,1.0569]
[1759745952825,3.91537772,4564.6,4564.5,1.0569]
[1759745953022,4.17797772,4564.6,4564.5,1.0569]
[1759745953423,3.91537772,4564.6,4564.5,1.0569]
[1759745953622,3.69637772,4564.6,4564.5,1.0569]
[1759745953830,4.17797772,4564.6,4564.5,1.0569]
[1759745954927,4.81687772,4564.6,4564.5,1.0569]
[1759745955117,4.59787772,4564.6,4564.5,1.0569]
[1759745955321,4.81687772,4564.6,4564.5,1.0569]
[1759745956624,4.44577772,4564.6,4564.5,1.0569]
[1759745956825,4.22677772,4564.6,4564.5,1.0569]
[1759745957025,4.44577772,4564.6,4564.5,1.0569]
[1759745957231,4.81687772,4564.6,4564.5,1.0569]
[1759745959327,4.44577772,4564.6,4564.5,1.0569]
[1759745960132,4.61677772,4564.6,4564.5,1.0569]
[1759745960331,4.22677772,4564.6,4564.5,1.0569]
[1759745960529,4.44577772,4564.6,4564.5,1.0569]
[1759745960829,4.83577772,4564.6,4564.5,1.0569]
[1759745961632,4.44577772,4564.6,4564.5,1.0569]
[1759745962129,4.22677772,4564.6,4564.5,1.0569]
[1759745962334,1.23788766,4564.6,4564.5,1.0569]
[1759745962529,0.48848766,4564.6,4564.5,1.0569]
[1759745962735,0.00243171,4564.8,4564.7,0.9114]
[1759745962935,0.16943171,4564.8,4564.7,4.1192]
[1759745963232,4.1083,4565.7,4565.6,0.65938]
[1759745963435,4.81558328,4565.7,4565.6,0.2653]
[1759745963829,4.81558328,4565.7,4565.6,0.6453]
[1759745964027,4.59658328,4565.7,4565.6,0.6453]
[1759745964338,4.59658328,4565.7,4565.6,0.9114]
[1759745964339,0.73521065,4565.7,4565.6,0.9114]
[1759745964538,0.95421065,4565.7,4565.6,0.9114]
[1759745964936,0.49041065,4565.7,4565.6,0.9114]
[1759745965135,0.22112737,4565.7,4565.6,0.9114]
[1759745965534,0.22112737,4565.7,4565.6,41.7114]
[1759745969844,0.5105,4565.4,4565.3,0.39411]
[1759745970035,0.9005,4565.4,4565.2,0.39412]
[1759745970441,0.9005,4565.4,4565.3,40.8]
[1759745971135,0.9005,4565.4,4565.3,41.18]
[1759745971531,0.2448,4565.4,4565.3,41.18]
[1759745971735,0.46592737,4565.7,4565.6,0.92549]
[1759745971930,1.12162737,4565.7,4565.6,1.30549]
[1759745972740,0.39408,4565.6,4565.3,40.8]
[1759745972934,0.9005,4565.5,4565.4,0.6453]
[1759745973142,0.2448,4565.5,4565.4,0.9114]
[1759745973339,0.00212737,4565.7,4565.6,0.2653]
[1759745973642,0.22112737,4565.7,4565.6,0.9106]
[1759745973835,0.00212737,4565.7,4565.6,0.9106]
[1759745975644,0.24692737,4565.7,4565.6,0.9106]
[1759745976043,0.88732737,4565.7,4565.6,0.9106]
[1759745976341,0.49442737,4565.7,4565.6,0.9106]
[1759745978648,0.24692737,4565.7,4565.6,0.9106]
[1759745978844,0.00212737,4565.7,4565.6,0.9106]
[1759745979944,0.25922737,4565.7,4565.6,0.9106]
[1759745982545,0.74709129,4565.7,4565.6,0.9106]
[1759745985339,0.25922737,4565.7,4565.6,0.9106]
[1759745986140,0.50672737,4565.7,4565.6,0.9106]
[1759745986444,0.89962737,4565.7,4565.6,0.9106]
[1759745986839,1.11862737,4565.7,4565.6,0.9106]
[1759745987248,0.89962737,4565.7,4565.6,0.9106]
[1759745987442,0.22112737,4565.7,4565.6,0.9106]
[1759745988151,0.47642737,4565.7,4565.6,0.9106]
[1759745989141,1.08292737,4565.7,4565.6,0.895]
[1759745989449,1.57136558,4565.7,4565.6,0.895]
[1759745989645,1.21106558,4565.7,4565.6,0.895]
[1759745990652,0.70956558,4565.7,4565.6,0.895]
[1759745990953,0.96486558,4565.7,4565.6,0.895]
[1759745993350,0.70956558,4565.7,4565.6,0.895]